Workbook

Sheet Прайс
A1: Название | B1: Цена
A2: Резистор 1,1 ом | B2: 1.23
A3: Резистор 2 ом | B3: 2.11 | D3: Заменить на Резистор 2.2 ом
A4: Резистор 3 ом | B4: 4.22
A5: Резистор 3.3 ом | B5: 5.32
A6: Резистор 5.6 ом | B6: 6.84
A7: Резистор 6.9 ом | B7: 2.66
A8: Плата МК-16 | B8: 50 | D8: Заменить на плату МВ-01
A9: Микросхема 8962 | B9: 35.36
A10: Транзистор 2232 | B10: 12.58
A11: Драйвер 996 | B11: 39.7

Sheet Себестоимость
A1: Изделие 1 | B1: Кол-во | C1: Цена | D1: Сумма
A2: Резистор 1,1 ом | B2: 2 | C2: =IFERROR(VLOOKUP(A2,Прайс!$A$2:$B$70,2,0),"") -> 1.23 | D2: =IFERROR(C2*B2,"") -> 2.46
A3: Резистор 5.6 ом | B3: 2 | C3: =IFERROR(VLOOKUP(A3,Прайс!$A$2:$B$70,2,0),"") -> 6.84 | D3: =IFERROR(C3*B3,"") -> 13.68
A4: Микросхема 8962 | B4: 1 | C4: =IFERROR(VLOOKUP(A4,Прайс!$A$2:$B$70,2,0),"") -> 35.36 | D4: 35.36
A5: Транзистор 2232 | B5: 3 | C5: =IFERROR(VLOOKUP(A5,Прайс!$A$2:$B$70,2,0),"") -> 12.58 | D5: 37.74
C6: =IFERROR(VLOOKUP(A6,Прайс!$A$2:$B$70,2,0),"") -> 
A7: Изделие 2 | C7: =IFERROR(VLOOKUP(A7,Прайс!$A$2:$B$70,2,0),"") -> 
A8: Резистор 2 ом | B8: 1 | C8: =IFERROR(VLOOKUP(A8,Прайс!$A$2:$B$70,2,0),"") -> 2.11 | D8: 2.11
A9: Резистор 3 ом | B9: 11 | C9: =IFERROR(VLOOKUP(A9,Прайс!$A$2:$B$70,2,0),"") -> 4.22 | D9: 46.42
A10: Резистор 5.6 ом | B10: 1 | C10: =IFERROR(VLOOKUP(A10,Прайс!$A$2:$B$70,2,0),"") -> 6.84 | D10: 6.84
A11: Плата МК-16 | B11: 2 | C11: =IFERROR(VLOOKUP(A11,Прайс!$A$2:$B$70,2,0),"") -> 50 | D11: 100
A12: Резистор 5.6 ом | B12: 4 | C12: =IFERROR(VLOOKUP(A12,Прайс!$A$2:$B$70,2,0),"") -> 6.84 | D12: 27.36
C13: =IFERROR(VLOOKUP(A13,Прайс!$A$2:$B$70,2,0),"") -> 
A14: Изделие 3 | C14: =IFERROR(VLOOKUP(A14,Прайс!$A$2:$B$70,2,0),"") -> 
A15: Драйвер 996 | B15: 1 | C15: =IFERROR(VLOOKUP(A15,Прайс!$A$2:$B$70,2,0),"") -> 39.7 | D15: 39.7
A16: Плата МК-16 | B16: 3 | C16: =IFERROR(VLOOKUP(A16,Прайс!$A$2:$B$70,2,0),"") -> 50 | D16: 150
A17: ИТОГО | D17: =SUM(D2:D15) -> 311.67

Sheet Лист3
